fUST/lending_fUST_20250717
["ID","MTS","AMOUNT","RATE_DAILY","PERIOD"]
[372649493,1752733841980,-460.0,0.00018306,2]
[372649494,1752733841990,-460.0,0.00018306,2]
[372649495,1752733842000,-466.63479276,0.00018306,2]
[372649496,1752733842009,-460.0,0.00018306,2]
[372649497,1752733842020,-460.0,0.00018306,2]
[372649498,1752733842029,-672.11,0.00018306,2]
[372649499,1752733842039,-184.22711808,0.00018306,2]
[372649500,1752733842049,-460.0,0.00018306,2]
[372649501,1752733842060,-209.86386935,0.00018306,2]
[372649502,1752733842070,-460.0,0.00018306,2]
[372649503,1752733842080,-460.0,0.00018306,2]
[372649504,1752733842089,-376.84467449,0.00018306,2]
[372649505,1752733842099,-460.0,0.00018306,2]
[372649506,1752733842108,-460.0,0.00018306,2]
[372649507,1752733842118,-460.0,0.00018306,2]
[372649508,1752733842127,-460.0,0.00018306,2]
[372649509,1752733842137,-5674.72,0.00018306,2]
[372649510,1752733842147,-505.27191865,0.00018306,2]
[372649511,1752733842156,-460.0,0.00018306,2]
[372649512,1752733842165,-460.0,0.00018306,2]
[372649513,1752733842174,-460.0,0.00018306,2]
[372649514,1752733842183,-460.0,0.00018306,2]
[372649515,1752733842193,-460.0,0.00018306,2]
[372649516,1752733842203,-460.0,0.00018306,2]
[372649517,1752733842212,-460.0,0.00018306,2]
[372649518,1752733842222,-460.0,0.00018306,2]
[372649519,1752733842231,-460.0,0.00018306,2]
[372649520,1752733842241,-2305.95,0.00018306,2]
[372649521,1752733842251,-460.0,0.00018306,2]
[372649522,1752733842260,-4193.99,0.00018306,2]
[372649523,1752733842271,-460.0,0.00018306,2]
[372649524,1752733842281,-460.0,0.00018306,2]
[372649525,1752733842290,-710.08,0.00018306,2]
[372649526,1752733842301,-460.0,0.00018306,2]
[372649527,1752733842313,-36958.72435138,0.00018306,2]
[372649528,1752733842322,-460.0,0.00018306,2]
[372649529,1752733842332,-460.0,0.00018306,2]
[372649530,1752733842342,-460.0,0.00018306,2]
[372649532,1752733842352,-460.0,0.00018306,2]
[372649533,1752733842361,-1286.69,0.00018306,2]
[372649535,1752733842371,-460.0,0.00018306,2]
[372649536,1752733842380,-460.0,0.00018306,2]
[372649538,1752733842390,-2289.29,0.00018306,2]
[372649539,1752733842399,-460.0,0.00018306,2]
[372649541,1752733842409,-180.7022225,0.00018306,2]
[372649542,1752733842418,-460.0,0.00018307,2]
[372649543,1752733842427,-460.0,0.00018307,2]
[372649544,1752733842437,-460.0,0.00018308,2]
[372649545,1752733842447,-460.0,0.00018308,2]
[372649546,1752733842456,-460.0,0.00018308,2]
[372649547,1752733842466,-369.96860725,0.00018308,2]
[372649548,1752733842476,-350.0352822,0.00018308,2]
[372649549,1752733842486,-312.81081687,0.00018308,2]
[372649550,1752733842496,-460.0,0.00018308,2]
[372649551,1752733842506,-460.0,0.00018308,2]
[372649552,1752733842516,-460.0,0.00018309,2]
[372649553,1752733842526,-460.0,0.00018309,2]
[372649554,1752733842536,-460.0,0.00018309,2]
[372649555,1752733842546,-460.0,0.00018309,2]
[372649556,1752733842558,-460.0,0.00018309,2]
[372649557,1752733842568,-460.0,0.00018309,2]
[372649558,1752733842578,-463.63892425,0.00018309,2]
[372649560,1752733842588,-589.40163127,0.00018309,2]
[372649563,1752733842598,-199.8088663,0.00018309,2]
[372649566,1752733842608,-460.0,0.00018309,2]
[372649569,1752733842618,-460.0,0.00018309,2]
[372649572,1752733842627,-460.0,0.00018309,2]
[372649575,1752733842636,-460.0,0.00018309,2]
[372649578,1752733842646,-460.0,0.00018309,2]
[372649581,1752733842656,-1737.46,0.00018309,2]
[372649583,1752733842665,-2090.97,0.00018309,2]
[372649585,1752733842674,-899.49,0.00018309,2]
[372649587,1752733842684,-6103.66126705,0.00018309,2]
[372649589,1752733842694,-2579.09,0.00018309,2]
[372649591,1752733842703,-642.73,0.00018309,2]
[372649592,1752733842713,-460.0,0.0001831,2]
[372649593,1752733842723,-460.0,0.0001831,2]
[372649594,1752733842734,-153.54151181,0.0001831,2]
[372649595,1752733842748,-460.0,0.0001831,2]
[372649596,1752733842757,-460.0,0.0001831,2]
[372649597,1752733842767,-460.0,0.0001831,2]
[372649598,1752733842778,-460.0,0.0001831,2]
[372649599,1752733842788,-460.0,0.0001831,2]
[372649600,1752733842797,-460.0,0.0001831,2]
[372649601,1752733842809,-460.0,0.0001831,2]
[372649602,1752733842820,-460.0,0.0001831,2]
[372649603,1752733842831,-460.0,0.0001831,2]
[372649604,1752733842840,-460.0,0.0001831,2]
[372649605,1752733842850,-463.71353092,0.0001831,2]
[372649606,1752733842860,-460.0,0.0001831,2]
[372649607,1752733842869,-460.0,0.0001831,2]
[372649608,1752733842878,-460.0,0.0001831,2]
[372649609,1752733842888,-460.0,0.0001831,2]
[372649610,1752733842897,-460.0,0.0001831,2]
[372649611,1752733842908,-465.67768986,0.0001831,2]
[372649612,1752733842918,-460.0,0.0001831,2]
[372649613,1752733842927,-460.0,0.0001831,2]
[372649614,1752733842937,-460.0,0.0001831,2]
[372649615,1752733842946,-460.0,0.0001831,2]
[372649616,1752733842957,-460.0,0.0001831,2]
[372649617,1752733842967,-600.05347299,0.0001831,2]
[372649618,1752733842977,-460.0,0.0001831,2]
[372649619,1752733842986,-460.0,0.0001831,2]
[372649620,1752733842996,-460.0,0.0001831,2]
[372649621,1752733843005,-381.95065544,0.0001831,2]
[372649622,1752733843015,-460.0,0.0001831,2]
[372649623,1752733843024,-460.0,0.0001831,2]
[372649624,1752733843034,-460.0,0.0001831,2]
[372649625,1752733843043,-460.0,0.0001831,2]
[372649626,1752733843052,-460.0,0.0001831,2]
[372649627,1752733843061,-460.0,0.0001831,2]
[372649628,1752733843070,-460.0,0.0001831,2]
[372649629,1752733843080,-460.0,0.0001831,2]
[372649630,1752733843089,-460.0,0.0001831,2]
[372649631,1752733843099,-674.33,0.0001831,2]
[372649632,1752733843109,-460.0,0.0001831,2]
[372649633,1752733843118,-460.0,0.0001831,2]
[372649634,1752733843128,-460.0,0.0001831,2]
[372649635,1752733843137,-460.0,0.0001831,2]
[372649636,1752733843147,-460.0,0.0001831,2]
[372649637,1752733843156,-460.0,0.0001831,2]
[372649638,1752733843166,-460.0,0.0001831,2]
[372649639,1752733843175,-460.0,0.0001831,2]
[372649640,1752733843185,-460.0,0.0001831,2]
[372649641,1752733843194,-460.0,0.0001831,2]
[372649642,1752733843204,-460.0,0.0001831,2]
[372649643,1752733843213,-460.0,0.0001831,2]
[372649644,1752733843222,-460.0,0.0001831,2]
[372649645,1752733843232,-460.0,0.0001831,2]
[372649646,1752733843241,-460.0,0.0001831,2]
[372649647,1752733843251,-505.14572642,0.0001831,2]
[372649648,1752733843260,-460.0,0.0001831,2]
[372649649,1752733843270,-460.0,0.0001831,2]
[372649650,1752733843279,-460.0,0.0001831,2]
[372649651,1752733843289,-460.0,0.0001831,2]
[372649652,1752733843298,-460.0,0.0001831,2]
[372649653,1752733843310,-460.0,0.0001831,2]
[372649654,1752733843320,-460.0,0.0001831,2]
[372649655,1752733843330,-460.0,0.0001831,2]
[372649656,1752733843339,-460.0,0.0001831,2]
[372649657,1752733843435,-495.29,0.0001831,2]
[372649658,1752733843446,-460.0,0.0001831,2]
[372649659,1752733843456,-460.0,0.0001831,2]
[372649660,1752733843465,-151.0,0.0001831,2]
[372649661,1752733843475,-460.0,0.0001831,2]
[372649662,1752733843484,-460.0,0.0001831,2]
[372649663,1752733843495,-151.0,0.0001831,2]
[372649664,1752733843504,-460.0,0.0001831,2]
[372649665,1752733843514,-460.0,0.0001831,2]
[372649666,1752733843524,-420.50965263,0.0001831,2]
[372649667,1752733843534,-460.0,0.0001831,2]
[372649668,1752733843543,-460.0,0.0001831,2]
[372649669,1752733843555,-460.0,0.0001831,2]
[372649670,1752733843565,-460.0,0.0001831,2]
[372649671,1752733843575,-460.0,0.0001831,2]
[372649672,1752733843585,-460.0,0.0001831,2]
[372649673,1752733843595,-1000.0,0.0001831,2]
[372649674,1752733843604,-151.52356667,0.00018367,2]
[372649675,1752733843614,-3801.642,0.00018367,2]
[372649676,1752733843623,-207.4,0.00018367,2]
[372649677,1752733843633,-25000.0,0.00018367,2]
[372649678,1752733843643,-151.0,0.00018367,2]
[372649679,1752733843652,-152.943401,0.00018367,2]
[372649680,1752733843661,-151.238899,0.00018367,2]
[372649681,1752733843671,-500.0,0.00018373,2]
[372649682,1752733843681,-336.39055262,0.00018373,2]
[372649683,1752733843691,-500.0,0.00018373,2]
[372649684,1752733843700,-500.0,0.00018373,2]
[372649685,1752733843709,-500.0,0.00018373,2]
[372649686,1752733843719,-500.98373179,0.00018373,2]
[372649687,1752733843728,-500.0,0.00018373,2]
[372649688,1752733843742,-500.0,0.00018373,2]
[372649689,1752733843752,-150.53306539,0.00018373,2]
[372649690,1752733843761,-536.70707759,0.00018373,2]
[372649691,1752733843771,-500.3859121,0.00018373,2]
[372649692,1752733843781,-500.22838442,0.00018373,2]
[372649693,1752733843791,-500.0,0.00018373,2]
[372649694,1752733843800,-500.0,0.00018373,2]
[372649695,1752733843815,-500.3049623,0.00018373,2]
[372649696,1752733843824,-500.0,0.00018373,2]
[372649697,1752733843833,-500.0,0.00018373,2]
[372649698,1752733843843,-502.61157044,0.00018373,2]
[372649700,1752733843852,-501.19367471,0.00018373,2]
[372649702,1752733843861,-514.27559601,0.00018373,2]
[372649704,1752733843871,-500.0,0.00018373,2]
[372649706,1752733843880,-151.0,0.000184,2]
[372649708,1752733843889,-460.0,0.00018405,2]
[372649710,1752733843899,-460.0,0.00018405,2]
[372649712,1752733843908,-460.0,0.00018405,2]
[372649714,1752733843917,-460.0,0.00018405,2]
[372649716,1752733843927,-4140.04,0.00018405,2]
[372649718,1752733843936,-932.79,0.00018405,2]
[372649720,1752733843946,-540.39,0.00018405,2]
[372649722,1752733843957,-460.0,0.00018405,2]
[372649724,1752733843966,-2892.45,0.00018405,2]
[372649726,1752733843975,-460.0,0.00018405,2]
[372649728,1752733843984,-460.0,0.00018405,2]
[372649730,1752733843993,-2151.51,0.00018405,2]
[372649732,1752733844002,-727.28,0.00018405,2]
[372649734,1752733844012,-460.0,0.00018406,2]
[372649736,1752733844021,-460.0,0.00018406,2]
[372649738,1752733844031,-599.70286847,0.00018406,2]
[372649740,1752733844040,-460.0,0.00018406,2]
[372649741,1752733844049,-460.0,0.00018406,2]
[372649743,1752733844062,-460.0,0.00018406,2]
[372649745,1752733844072,-439.89990516,0.00018406,2]
[372649747,1752733844081,-460.0,0.00018406,2]
[372649749,1752733844091,-460.0,0.00018406,2]
[372649752,1752733844100,-460.0,0.00018406,2]
[372649753,1752733844109,-460.0,0.00018406,2]
[372649755,1752733844119,-460.0,0.00018406,2]
[372649757,1752733844129,-460.0,0.00018406,2]
[372649759,1752733844140,-151.0,0.00018407,2]
[372649761,1752733844150,-500.0,0.00018407,2]
[372649764,1752733844161,-151.0,0.00018407,2]
[372649766,1752733844170,-151.41970091,0.00018407,2]
[372649767,1752733844180,-500.0,0.00018407,2]
[372649769,1752733844190,-151.0,0.00018407,2]
[372649771,1752733844199,-151.0,0.00018407,2]
[372649773,1752733844209,-500.0,0.00018407,2]
[372649774,1752733844218,-460.0,0.00018407,2]
[372649775,1752733844228,-460.0,0.00018407,2]
[372649776,1752733844238,-460.0,0.00018407,2]
[372649777,1752733844247,-460.0,0.00018407,2]
[372649778,1752733844257,-460.0,0.00018407,2]
[372649779,1752733844266,-460.0,0.00018407,2]
[372649781,1752733844276,-460.0,0.00018407,2]
[372649783,1752733844286,-460.0,0.00018407,2]
[372649784,1752733844295,-460.0,0.00018407,2]
[372649785,1752733844308,-460.0,0.00018407,2]
[372649786,1752733844318,-460.0,0.00018407,2]
[372649787,1752733844328,-460.0,0.00018407,2]
[372649788,1752733844338,-460.0,0.00018407,2]
[372649789,1752733844350,-460.0,0.00018407,2]
[372649790,1752733844364,-460.0,0.00018407,2]
[372649791,1752733844373,-460.0,0.00018407,2]
[372649792,1752733844383,-460.0,0.00018407,2]
[372649793,1752733844394,-425.26952359,0.00018407,2]
[372649794,1752733844404,-460.0,0.00018407,2]
[372649795,1752733844413,-460.0,0.00018407,2]
[372649796,1752733844424,-631.04,0.00018407,2]
[372649797,1752733844433,-460.0,0.00018407,2]
[372649798,1752733844444,-460.0,0.00018407,2]
[372649799,1752733844453,-460.0,0.00018407,2]
[372649800,1752733844463,-460.0,0.00018407,2]
[372649801,1752733844474,-1599.14,0.00018407,2]
[372649802,1752733844484,-460.0,0.00018407,2]
[372649803,1752733844494,-460.0,0.00018407,2]
[372649804,1752733844503,-460.0,0.00018407,2]
[372649805,1752733844514,-555.01922077,0.00018407,2]
[372649806,1752733844524,-460.0,0.00018407,2]
[372649807,1752733844533,-460.0,0.00018407,2]
[372649808,1752733844543,-613.34,0.00018407,2]
[372649809,1752733844553,-619.55,0.00018407,2]
[372649810,1752733844563,-1158.0,0.00018407,2]
[372649811,1752733844572,-460.0,0.00018407,2]
[372649812,1752733844582,-460.0,0.00018407,2]
[372649813,1752733844591,-460.0,0.00018407,2]
[372649814,1752733844601,-693.25,0.00018407,2]
[372649815,1752733844611,-460.0,0.00018407,2]
[372649816,1752733844620,-460.0,0.00018407,2]
[372649817,1752733844629,-560.72538807,0.00018407,2]
[372649818,1752733844639,-460.0,0.00018407,2]
[372649819,1752733844648,-460.0,0.00018407,2]
[372649820,1752733844658,-151.0,0.00018409,2]
[372649821,1752733844667,-1194.0,0.00018409,2]
[372649822,1752733844677,-151.0,0.00018409,2]
[372649823,1752733844686,-151.0,0.00018409,2]
[372649824,1752733844695,-151.0,0.00018409,2]
[372649825,1752733844705,-151.0,0.00018409,2]
[372649826,1752733844714,-151.47140819,0.00018409,2]
[372649827,1752733844723,-151.0,0.00018409,2]
[372649828,1752733844734,-1100.0,0.00018409,2]
[372649829,1752733844748,-500.0,0.00018409,2]
[372649830,1752733844757,-500.0,0.00018409,2]
[372649831,1752733844767,-151.0,0.00018409,2]
[372649832,1752733844776,-500.0,0.00018409,2]
[372649833,1752733844786,-460.0,0.00018409,2]
[372649834,1752733844795,-460.0,0.00018409,2]
[372649835,1752733844807,-460.0,0.00018409,2]
[372649836,1752733844818,-312.67306908,0.00018409,2]
[372649837,1752733844827,-460.0,0.00018409,2]
[372649838,1752733844837,-460.0,0.00018409,2]
[372649839,1752733844847,-460.0,0.00018409,2]
[372649840,1752733844857,-211.58095605,0.00018409,2]
[372649841,1752733844866,-460.0,0.00018409,2]
[372649842,1752733844875,-267.12146662,0.00018409,2]
[372649843,1752733844885,-461.72932056,0.00018409,2]
[372649844,1752733844894,-460.0,0.00018409,2]
[372649845,1752733844903,-460.0,0.00018409,2]
[372649846,1752733844913,-460.0,0.00018409,2]
[372649847,1752733844922,-460.0,0.00018409,2]
[372649848,1752733844932,-460.0,0.00018409,2]
[372649849,1752733844941,-460.0,0.00018409,2]
[372649850,1752733844950,-460.0,0.00018409,2]
[372649851,1752733844960,-464.89380412,0.00018409,2]
[372649852,1752733844969,-460.0,0.00018409,2]
[372649853,1752733844980,-460.0,0.00018409,2]
[372649854,1752733844989,-460.0,0.00018409,2]
[372649855,1752733844999,-460.0,0.00018409,2]
[372649856,1752733845009,-578.3388043,0.00018409,2]
[372649857,1752733845095,-460.0,0.00018409,2]
[372649858,1752733845105,-460.0,0.00018409,2]
[372649859,1752733845115,-558.50960345,0.00018409,2]
[372649860,1752733845125,-462.16852898,0.00018409,2]
[372649861,1752733845135,-460.0,0.00018409,2]
[372649862,1752733845144,-460.0,0.00018409,2]
[372649863,1752733845154,-460.0,0.00018409,2]
[372649864,1752733845164,-460.0,0.00018409,2]
[372649865,1752733845174,-460.0,0.00018409,2]
[372649866,1752733845183,-461.28143089,0.00018409,2]
[372649867,1752733845193,-460.0,0.00018409,2]
[372649868,1752733845203,-460.0,0.00018409,2]
[372649869,1752733845212,-513.22897805,0.00018409,2]
[372649870,1752733845222,-460.0,0.00018409,2]
[372649871,1752733845232,-460.0,0.00018409,2]
[372649872,1752733845242,-460.0,0.00018409,2]
[372649873,1752733845252,-460.0,0.00018409,2]
[372649874,1752733845261,-460.0,0.00018409,2]
[372649875,1752733845271,-460.0,0.00018409,2]
[372649876,1752733845280,-460.0,0.00018409,2]
[372649877,1752733845290,-460.0,0.00018409,2]
[372649878,1752733845299,-847.53,0.00018409,2]
[372649880,1752733845313,-460.0,0.00018409,2]
[372649882,1752733845322,-360.25136547,0.00018409,2]
[372649883,1752733845332,-460.0,0.00018409,2]
[372649884,1752733845342,-692.39,0.00018409,2]
[372649885,1752733845351,-460.0,0.00018409,2]
[372649886,1752733845361,-460.0,0.00018409,2]
[372649887,1752733845371,-460.0,0.00018409,2]
[372649888,1752733845380,-460.0,0.00018409,2]
[372649889,1752733845389,-460.0,0.00018409,2]
[372649890,1752733845399,-546.11,0.00018409,2]
[372649893,1752733845409,-460.0,0.00018409,2]
[372649894,1752733845418,-460.0,0.00018409,2]
[372649895,1752733845427,-3583.74,0.00018409,2]
[372649897,1752733845437,-294.13937907,0.00018409,2]
[372649899,1752733845447,-460.0,0.00018409,2]
[372649901,1752733845456,-1073.34,0.00018409,2]
[372649903,1752733845466,-342.22579245,0.0001841,2]
[372649905,1752733845475,-451.50982227,0.0001841,2]
[372649907,1752733845484,-460.0,0.0001841,2]
[372649909,1752733845494,-460.0,0.0001841,2]
[372649911,1752733845503,-151.05134128,0.0001841,2]
[372649913,1752733845513,-460.0,0.0001841,2]
[372649915,1752733845523,-460.0,0.0001841,2]
[372649917,1752733845532,-460.0,0.0001841,2]
[372649919,1752733845542,-460.0,0.0001841,2]
[372649921,1752733845551,-151.0,0.00018411,2]
[372649923,1752733845562,-460.0,0.00018411,2]
[372649925,1752733845572,-460.0,0.00018411,2]
[372649927,1752733845582,-460.0,0.00018411,2]
[372649928,1752733845591,-460.0,0.00018411,2]
[372649929,1752733845601,-460.0,0.00018411,2]
[372649932,1752733845610,-460.0,0.00018411,2]
[372649935,1752733845620,-460.0,0.00018411,2]
[372649937,1752733845629,-460.0,0.00018411,2]
[372649939,1752733845639,-460.0,0.00018411,2]
[372649941,1752733845649,-151.0,0.00018411,2]
[372649943,1752733845659,-151.0,0.00018411,2]
[372649945,1752733845668,-460.0,0.00018411,2]
[372649947,1752733845677,-460.0,0.00018411,2]
[372649948,1752733845687,-151.0,0.00018411,2]
[372649949,1752733845696,-151.20068,0.00018411,2]
[372649950,1752733845706,-151.0,0.00018411,2]
[372649951,1752733845715,-151.0,0.00018411,2]
[372649952,1752733845725,-151.0,0.00018411,2]
[372649953,1752733845735,-151.0,0.00018411,2]
[372649954,1752733845748,-219.032396,0.00018411,2]
[372649955,1752733845758,-219.032396,0.00018411,2]
[372649956,1752733845768,-151.0,0.00018411,2]
[372649957,1752733845778,-151.0,0.00018411,2]
[372649958,1752733845789,-330.792834,0.00018412,2]
[372649959,1752733845800,-330.792834,0.00018412,2]
[372649960,1752733845812,-263.172676,0.00018412,2]
[372649961,1752733845824,-263.172676,0.00018412,2]
[372649962,1752733845835,-151.0,0.00018412,2]
[372649963,1752733845844,-151.0,0.00018412,2]
[372649965,1752733845855,-151.0,0.00018412,2]
[372649967,1752733845864,-151.0,0.00018413,2]
[372649969,1752733845873,-151.0,0.00018413,2]
[372649971,1752733845883,-330.792834,0.00018413,2]
[372649972,1752733845892,-330.792834,0.00018413,2]
[372649973,1752733845903,-151.0,0.00018413,2]
[372649974,1752733845912,-151.0,0.00018413,2]
[372649975,1752733845922,-263.172676,0.00018413,2]
[372649976,1752733845931,-263.172676,0.00018413,2]
[372649977,1752733845941,-151.0,0.00018414,2]
[372649978,1752733845951,-151.0,0.00018414,2]
[372649979,1752733845961,-151.0,0.00018414,2]
[372649980,1752733845970,-166.465663,0.00018414,2]
[372649981,1752733845979,-166.465663,0.00018414,2]
[372649982,1752733845988,-330.792834,0.00018415,2]
[372649983,1752733845998,-330.792834,0.00018415,2]
[372649984,1752733846007,-1783.64727654,0.00018419,2]
[372649985,1752733846016,-280.0,0.0001843,2]
[372649986,1752733846026,-558.0,0.00018467,2]
[372649987,1752733846035,-751.7386435,0.00018484,2]
[372649988,1752733846045,-151.0,0.00018484,2]
[372649989,1752733846056,-228.017257,0.00018484,2]
[372649990,1752733846065,-296.12937,0.00018484,2]
[372649991,1752733846075,-296.12937,0.00018484,2]
[372649992,1752733846085,-151.326957,0.00018484,2]
[372649993,1752733846095,-151.326957,0.00018484,2]
[372649994,1752733846105,-1676.0488786,0.0001849,2]
[372649995,1752733846115,-576.958633,0.000185,2]
[372649996,1752733846125,-153.0,0.000185,2]
[372649997,1752733846135,-356.0724516,0.000185,2]
[372649998,1752733846144,-576.958633,0.000185,2]
[372649999,1752733846153,-576.958633,0.000185,2]
[372650000,1752733846163,-178.0508327,0.000185,2]
[372650001,1752733846173,-178.0508326,0.000185,2]
[372650002,1752733846184,-151.0,0.000185,2]
[372650003,1752733846194,-34221.0169417,0.000185,2]
[372650004,1752733846203,-2070.90632057,0.000185,2]
[372650005,1752733846213,-500.0,0.00018529,2]
[372650006,1752733846222,-508.09913005,0.00018529,2]
[372650007,1752733846232,-500.0,0.00018529,2]
[372650008,1752733846241,-500.0,0.00018529,2]
[372650009,1752733846250,-500.79378566,0.00018529,2]
[372650010,1752733846260,-166.465663,0.00018574,2]
[372650011,1752733846269,-166.465663,0.00018574,2]
[372650012,1752733846279,-460.0,0.0001858,2]
[372650013,1752733846288,-516.96866341,0.0001858,2]
[372650014,1752733846298,-460.0,0.0001858,2]
[372650015,1752733846310,-460.0,0.0001858,2]
[372650016,1752733846319,-460.0,0.0001858,2]
[372650017,1752733846329,-424.07649,0.0001858,2]
[372650018,1752733846338,-424.07649,0.0001858,2]
[372650019,1752733846348,-152.453471,0.0001858,2]
[372650020,1752733846358,-151.0,0.0001858,2]
[372650021,1752733846367,-152.890739,0.0001858,2]
[372650022,1752733846377,-151.0,0.0001858,2]
[372650023,1752733846386,-460.0,0.0001858,2]
[372650024,1752733846395,-460.0,0.0001858,2]
[372650025,1752733846405,-460.0,0.0001858,2]
[372650026,1752733846414,-460.0,0.0001858,2]
[372650027,1752733846424,-512.75,0.0001858,2]
[372650028,1752733846433,-460.0,0.0001858,2]
[372650029,1752733846443,-460.0,0.0001858,2]
[372650030,1752733846453,-486.72,0.0001858,2]
[372650031,1752733846462,-151.0,0.0001858,2]
[372650032,1752733846471,-460.0,0.0001858,2]
[372650033,1752733846480,-151.0,0.0001858,2]
[372650034,1752733846490,-460.0,0.0001858,2]
[372650035,1752733846499,-460.0,0.0001858,2]
[372650036,1752733846509,-530.92,0.0001858,2]
[372650037,1752733846518,-587.58,0.0001858,2]
[372650038,1752733846529,-460.0,0.0001858,2]
[372650039,1752733846617,-460.0,0.0001858,2]
[372650040,1752733846627,-598.69,0.0001858,2]
[372650041,1752733846636,-460.0,0.0001858,2]
[372650042,1752733846646,-460.0,0.0001858,2]
[372650043,1752733846655,-460.0,0.0001858,2]
[372650044,1752733846665,-503.85243429,0.0001858,2]
[372650045,1752733846675,-460.0,0.0001858,2]
[372650046,1752733846685,-460.0,0.0001858,2]
[372650047,1752733846694,-460.0,0.0001858,2]
[372650048,1752733846704,-672.11,0.0001858,2]
[372650049,1752733846714,-460.0,0.0001858,2]
[372650050,1752733846724,-460.0,0.0001858,2]
[372650051,1752733846733,-460.0,0.0001858,2]
[372650052,1752733846745,-460.0,0.0001858,2]
[372650053,1752733846755,-460.0,0.0001858,2]
[372650054,1752733846764,-5674.72,0.0001858,2]
[372650055,1752733846779,-460.0,0.0001858,2]
[372650056,1752733846795,-460.0,0.0001858,2]
[372650057,1752733846805,-460.0,0.0001858,2]
[372650058,1752733846814,-460.0,0.0001858,2]
[372650059,1752733846828,-460.0,0.0001858,2]
[372650060,1752733846838,-460.0,0.0001858,2]
[372650061,1752733846848,-460.0,0.0001858,2]
[372650062,1752733846857,-2305.95,0.0001858,2]
[372650063,1752733846866,-460.0,0.0001858,2]
[372650064,1752733846875,-4193.99,0.0001858,2]
[372650065,1752733846885,-710.08,0.0001858,2]
[372650066,1752733846895,-460.0,0.0001858,2]
[372650067,1752733846908,-460.0,0.0001858,2]
[372650068,1752733846922,-460.0,0.0001858,2]
[372650069,1752733846934,-460.0,0.0001858,2]
[372650070,1752733846944,-1286.69,0.0001858,2]
[372650071,1752733846954,-460.0,0.0001858,2]
[372650072,1752733846963,-460.0,0.0001858,2]
[372650073,1752733846973,-2289.29,0.0001858,2]
[372650074,1752733846982,-460.0,0.0001858,2]
[372650075,1752733846992,-263.172676,0.00018582,2]
[372650076,1752733847001,-263.172676,0.00018582,2]
[372650077,1752733847011,-460.0,0.00018582,2]
[372650078,1752733847020,-455.0435308,0.00018582,2]
[372650079,1752733847029,-460.0,0.00018582,2]
[372650080,1752733847039,-151.0,0.00018582,2]
[372650081,1752733847048,-151.0,0.00018582,2]
[372650082,1752733847059,-460.0,0.00018583,2]
[372650083,1752733847068,-460.0,0.00018583,2]
[372650084,1752733847077,-460.0,0.00018583,2]
[372650085,1752733847086,-460.0,0.00018583,2]
[372650086,1752733847096,-460.98821901,0.00018583,2]
[372650087,1752733847106,-460.0,0.00018583,2]
[372650088,1752733847115,-460.0,0.00018583,2]
[372650089,1752733847124,-460.0,0.00018583,2]